Cogmind - Beta 13 @@@ ROGUE MODE // 2024.04.19 @ 06:41:07 Player: skittytittles Result: Self-destructed Performance ------------- Evolutions (2) 1000 Regions Visited (4) 800 Robots Destroyed (16) 80 Value Destroyed (516) 516 Prototype IDs (2) 40 Alien Tech Used (0) 0 Bonus (234) 234 TOTAL SCORE: 2670 Bonus ------- High Alert Combat Kills 22 Follower Combat Kills 232 Friendly Fire -20 Cogmind --------- Core Integrity 420/550 Matter 174/300 Energy 100/100 System Corruption 2% Temperature Cool (9) Movement Walking (90) Location -8/Materials Parts ------- > --- POWER (1) -------- (None) > --- PROPULSION (4) --- Light Treads VSS Leg > --- UTILITY (4) ------ Experimental Sensor Array Signal Interpreter Power Shielding Hacking Suite > --- WEAPON (2) ------- (None) > --- INVENTORY (5) ---- Sensor Array Targeting Computer Light Armor Plating Long-range Tractor Beam Light Assault Rifle Peak State ------------ > --- POWER ------------ Light Ion Engine > --- PROPULSION ------- Light Treads Light Treads Titanium Leg VSS Leg > --- UTILITY ---------- Experimental Sensor Array Signal Interpreter Power Shielding Hacking Suite > --- WEAPON ----------- Beam Rifle Light Assault Rifle > --- INVENTORY -------- Sensor Array Targeting Computer Light Armor Plating Long-range Tractor Beam Light Assault Rifle [Rating: 26] Favorites ----------- Power Light Nuclear Core Engine Ion Engine Power Core Light Nuclear Core Propulsion Aluminum Leg Treads Light Treads Leg Aluminum Leg Flight Unit Flight Unit Utility Sensor Array Device Sensor Array Storage Small Storage Unit Processor Signal Interpreter Hackware Hacking Suite Protection Power Shielding Weapon Rocket Launcher Energy Gun Beam Rifle Ballistic Gun Light Assault Rifle Ballistic Cannon Light Cannon Launcher Rocket Launcher Build | -11 -10 -10 -9 -8 ------- Run | Yrd Mat Min Mat Mat Slots Evolved 4 | . . . 2 2 Power . | . . . . . Propulsion 2 | . . . 2 . Utility 2 | . . . . 2 Weapon . | . . . . . Parts Attached 41 | 6 5 6 17 7 Power 4 | 1 . 2 1 . Engine 3 | 1 . 1 1 . Core 1 | . . 1 . . Reactor . | . . . . . Propulsion 18 | 2 . 4 10 2 Treads 2 | . . . 2 . Leg 10 | 2 . 4 2 2 Wheel . | . . . . . Hover . | . . . . . Flight 6 | . . . 6 . Utility 9 | 1 2 . 2 4 Device 4 | . 2 . . 2 Storage 1 | 1 . . . . Processor 1 | . . . . 1 Hackware 1 | . . . . 1 Protection 2 | . . . 2 . Artifact . | . . . . . Weapon 10 | 2 3 . 4 1 Energy Gun 2 | . . . 2 . Energy Cannon . | . . . . . Ballistic Gun 5 | 2 . . 2 1 Ballistic Cannon 1 | . 1 . . . Launcher 2 | . 2 . . . Special Weapon . | . . . . . Impact Weapon . | . . . . . Slashing Weapon . | . . . . . Piercing Weapon . | . . . . . Special Melee Weapon . | . . . . . Unidentified Prototypes 1 | . . . 1 . Parts Lost 16 | . . . 11 5 Power 2 | . . . 1 1 Propulsion 8 | . . . 6 2 Utility 1 | . . . 1 . Weapon 5 | . . . 3 2 Highest Loss Streak 5 | . . . 3 5 To Critical Strikes . | . . . . . Average Slot Usage (%) 88 | . 97 100 68 88 Engine 6 | . 14 4 3 6 Core 5 | . . 9 6 . Treads 2 | . . . 1 16 Leg 21 | . 28 28 14 9 Flight 2 | . . . 7 4 Device 19 | . 19 28 14 9 Storage 1 | . 6 . . . Protection 2 | . . . 5 10 Energy Gun 1 | . . . 3 6 Ballistic Gun 6 | . 15 . 7 9 Ballistic Cannon 2 | . 10 . . . Launcher 11 | . 1 28 3 . Naked Turns . | . . . . . Heaviest Build 16 | 13 16 15 15 12 Greatest Support 40 | 20 20 30 40 40 Greatest Overweight (x) 3 | 1 . . 3 . Average Overweight (x) . | . . . . . Largest Inventory Capacity 8 | 8 8 5 5 5 Average Capacity 5 | 7 6 5 5 5 Most Carried 5 | 2 5 5 5 5 Average Carried 4 | 1 4 4 4 4 Final Capacity 8 | 8 5 5 5 5 Final Carried 5 | 2 5 4 5 5 Class Distribution -------------------- 82% | Mutant 17% | Scavenger-Mutant Dominant Class ---------------- Mutant | -10/Materials Mutant | -10/Mines Mutant | -9/Materials Scavenger-Mutant | -8/Materials Resources | -11 -10 -10 -9 -8 ----------- Run | Yrd Mat Min Mat Mat Matter Collected 692 | 225 14 201 252 . Remotely . | . . . . . Salvage Created 375 | . 16 74 242 43 Parts 34 | . 4 3 24 3 Haulers Intercepted . | . . . . . Recyclers Shooed 2 | . . . 2 . Parts Field Recycled . | . . . . . Retrieved Matter . | . . . . . Parts Self-Destructed . | . . . . . Prevented . | . . . . . Kills | -11 -10 -10 -9 -8 ------- Run | Yrd Mat Min Mat Mat Combat Hostiles Destroyed 14 | . 3 3 7 1 Guns 4 | . . . 3 1 AOE 10 | . 3 3 4 . Classes Destroyed 6 | . 2 1 2 1 Operator 1 | . 1 . . . Watcher 1 | . . . 1 . Swarmer 5 | . 3 . 2 . Grunt 4 | . . 3 1 . Sentry 4 | . . . 4 . Hunter 1 | . . . . 1 Best Kill Streak 3 | . 3 2 3 1 Combat Bots Only 3 | . 3 2 3 1 Max Kills in Single Turn 2 | . 2 2 2 1 Gunslinging . | . . . . . Exploded 2 | . 2 2 2 . Melee . | . . . . . Uniques/NPCs Destroyed . | . . . . . Combat | -11 -10 -10 -9 -8 -------- Run | Yrd Mat Min Mat Mat Hostile Shots Fired 185 | . 19 . 109 57 Missed 56 | . 7 . 36 13 Damage Taken 1848 | . 135 45 997 671 Core 475 | . 21 3 321 130 Absorbed by Shields . | . . . . . Redirected to Shielding 30 | . . . 21 9 Core Remaining (%) 69 | 100 . 90 19 . Volleys Fired 56 | . 3 3 31 19 Largest 2 | . 2 2 2 2 Hottest 76 | . 66 66 66 76 Shots Fired 84 | . 6 6 45 27 Gun 64 | . 1 . 36 27 Cannon 1 | . 1 . . . Launcher 19 | . 4 6 9 . Special . | . . . . . Kinetic 56 | . 2 . 35 19 Thermal 8 | . . . . 8 Explosive 19 | . 4 6 9 . Electromagnetic 1 | . . . 1 . Robot Hit Streak 8 | . 1 1 6 8 Robot Miss Streak 3 | . 2 1 3 2 Penetration Max . | . . . . . Secondary Targets 1 | . . . 1 . Max Gunslinging Chain 1 | . . . 1 . Shots Hit Robots 57 | . 2 3 31 21 Core Hits 39 | . 4 6 22 7 Critical Kills . | . . . . . Critical Parts Destroyed . | . . . . . Critical Strikes 1 | . 1 . . . Blast 1 | . 1 . . . Melee Attacks . | . . . . . Impact . | . . . . . Slashing . | . . . . . Piercing . | . . . . . Sneak Attacks . | . . . . . Combat Hostiles . | . . . . . Follow-up Attacks . | . . . . . Damage Inflicted 1447 | . 187 397 658 205 Guns 431 | . . . 228 203 Cannons 18 | . 18 . . . Explosions 996 | . 169 397 430 . Melee . | . . . . . Ramming 2 | . . . . 2 Kinetic 334 | . 18 . 228 88 Thermal 251 | . . 136 . 115 Explosive 860 | . 169 261 430 . Electromagnetic . | . . . . . Impact . | . . . . . Slashing . | . . . . . Piercing . | . . . . . Highest Corruption 2 | . . . . 2 Average Corruption 2 | . . . . 2 Corruption Purged . | . . . . . Corruption Blocked . | . . . . . Effects 2 | . . . . 2 Matter Fused 2 | . . . . 2 Overload Shots . | . . . . . Overflow Damage 43 | . . . 43 . Projectiles . | . . . . . Explosions 43 | . . . 43 . Melee . | . . . . . Knockbacks . | . . . . . Impact . | . . . . . Kinetic . | . . . . . Secondary . | . . . . . Self-Inflicted Damage 139 | . 40 46 53 . Shots 5 | . 1 2 2 . Rammed 1 | . . . 1 . Targets Rammed 3 | . . . 1 2 Kicked 2 | . . . . 2 Crushed . | . . . . . Highest Temperature 48 | . 12 24 36 48 Average Temperature 14 | . 7 10 10 24 Received Heat Transfer 561 | . . . 300 261 Siege Activations . | . . . . . Robots Corrupted . | . . . . . Combat Hostiles . | . . . . . Parts Fried . | . . . . . Impact Corruptions . | . . . . . Robots Melted . | . . . . . Combat Hostiles . | . . . . . Parts Melted 1 | . . . . 1 Heat Transferred 496 | . . 200 . 296 Parts Sabotaged . | . . . . . Parts Stolen . | . . . . . Parts Stripped . | . . . . . Power Chain Reactions . | . . . . . Alert | -11 -10 -10 -9 -8 ------- Run | Yrd Mat Min Mat Mat Peak Influence 486 | . 121 314 486 217 Initial 157 | . . 46 44 157 Average 171 | . 12 134 332 196 Maximum Alert Level 2 | . . 1 2 1 Low Security (%) 61 | 100 100 83 14 37 Level 1 27 | . . 16 48 62 Level 2 10 | . . . 36 . Level 3 . | . . . . . Level 4 . | . . . . . Level 5 . | . . . . . High Security . | . . . . . Max Security . | . . . . . Squads Dispatched 4 | . . . 2 2 Investigation 1 | . . . . 1 Extermination . | . . . . . Reinforcement 3 | . . . 2 1 Assault . | . . . . . Garrison . | . . . . . Intercept . | . . . . . Searches Triggered . | . . . . . Construction Impeded . | . . . . . Haulers Reinforced . | . . . . . Active Scanning Responses . | . . . . . Cargo Convoy Interrupts . | . . . . . Stealth | -11 -10 -10 -9 -8 --------- Run | Yrd Mat Min Mat Mat Distress Signals 3 | . . . 3 . Communications Jammed . | . . . . . Distress Signals . | . . . . . Times Spotted 47 | . 5 6 30 6 Peak Tracking Total 8 | . 4 2 8 3 Tactical Retreats 3 | . . . 2 1 Traps | -11 -10 -10 -9 -8 ------- Run | Yrd Mat Min Mat Mat Traps Triggered 2 | . . . 1 1 Indirectly . | . . . . . Trap Hack Attempts . | . . . . . Triggered . | . . . . . Disarmed . | . . . . . Reprogrammed 4 | . . . . 4 Reused 1 | . . . . 1 Traps Extracted . | . . . . . Installed . | . . . . . Triggered 1 | . . . . 1 Machines | -11 -10 -10 -9 -8 ---------- Run | Yrd Mat Min Mat Mat Machines Disabled 5 | . . 4 1 . Max in Single Turn 2 | . . 2 1 . Machines Repaired . | . . . . . Machines Dismantled . | . . . . . Machines Sabotaged . | . . . . . Overloaded Fab Kills . | . . . . . Hacking | -11 -10 -10 -9 -8 --------- Run | Yrd Mat Min Mat Mat Machines Accessed 4 | . 1 . 1 2 Terminals 3 | . 1 . 1 1 Fabricators . | . . . . . Repair Stations . | . . . . . Recycling Units . | . . . . . Scanalyzers 1 | . . . . 1 Garrison Access . | . . . . . Total Hacks 9 | . 2 . 1 6 Successful 7 | . 2 . . 5 Failed 2 | . . . 1 1 Catastrophic . | . . . . . Database Lockouts . | . . . . . Manual . | . . . . . Terminals 6 | . 2 . 1 3 Fabricators . | . . . . . Repair Stations . | . . . . . Recycling Units . | . . . . . Scanalyzers 3 | . . . . 3 Garrison Access . | . . . . . Terminal Hacks 5 | . 2 . . 3 Record 1 | . 1 . . . Alert Level 1 | . . . . 1 Locate Traps 1 | . . . . 1 Reprogram Traps 1 | . . . . 1 Zone Layout 1 | . 1 . . . Fabricator Hacks . | . . . . . Repair Station Hacks . | . . . . . Recycling Unit Hacks . | . . . . . Scanalyzer 2 | . . . . 2 Insert Component 1 | . . . . 1 Analyze 1 | . . . . 1 Garrison Access Hacks . | . . . . . Unauthorized Hacks . | . . . . . Terminals . | . . . . . Fabricators . | . . . . . Repair Stations . | . . . . . Recycling Units . | . . . . . Scanalyzers . | . . . . . Garrison Access . | . . . . . Data Cores Recovered 1 | . 1 . . . Used . | . . . . . Hacking Detections 3 | . . . 1 2 Full Trace Events 1 | . . . . 1 Feedback Events . | . . . . . Feedback Blocked . | . . . . . Robot Schematics Acquired . | . . . . . Robots Built . | . . . . . Authchips . | . . . . . Time . | . . . . . Total Robot Build Rating . | . . . . . Part Schematics Acquired . | . . . . . Parts Built . | . . . . . Authchips . | . . . . . Time . | . . . . . Total Part Build Rating . | . . . . . Parts Repaired . | . . . . . Time . | . . . . . Parts Recycled . | . . . . . Recycled Matter . | . . . . . Retrieved Matter . | . . . . . Retrieved Components . | . . . . . Parts Scanalyzed 1 | . . . . 1 Part Schematics Acquired . | . . . . . Parts Damaged . | . . . . . Bothacking | -11 -10 -10 -9 -8 ------------ Run | Yrd Mat Min Mat Mat Used RIF Installer . | . . . . . Robots Hacked . | . . . . . Non-combat . | . . . . . Combat . | . . . . . Robot Hacks Applied . | . . . . . Relay Couplers Released . | . . . . . Fabnet Peak Effective % . | . . . . . Robots Rewired . | . . . . . Allies Hacked . | . . . . . Hacks Repelled . | . . . . . Allies | -11 -10 -10 -9 -8 -------- Run | Yrd Mat Min Mat Mat Total Allies 5 | . . 5 . . Largest Group 5 | . . 5 3 . Highest-Rated Group 91 | . . 91 40 . Highest-Rated Ally 31 | . . 31 16 . Total Orders . | . . . . . Ally Attacks 69 | . . 18 51 . Total Damage 580 | . . 156 424 . Kills 14 | . . 3 11 . Allies Corrupted . | . . . . . Allies Melted . | . . . . . Intel | -11 -10 -10 -9 -8 ------- Run | Yrd Mat Min Mat Mat Robot Analysis Total . | . . . . . Derelict Logs Recovered 1 | . . 1 . . Drone Launches . | . . . . . Drone Recoveries . | . . . . . Exploration | -11 -10 -10 -9 -8 ------------- Run | Yrd Mat Min Mat Mat Turns Passed 1650 | 72 326 585 501 166 Spaces Moved 1117 | 51 253 421 312 80 Core 88 | 5 . . 83 . Treads 43 | . . . 13 30 Legs 911 | 46 253 421 141 50 Wheels . | . . . . . Hover . | . . . . . Flight 75 | . . . 75 . Fastest Speed 44 | 50 120 120 44 110 Average Speed 122 | 115 120 120 124 131 Slowest Speed 200 | 190 120 130 200 160 Overloaded Moves . | . . . . . Propulsion Burnouts . | . . . . . Robots Hopped . | . . . . . Cave-ins Triggered . | . . . . . Exploration Rate (%) 39 | 4 50 93 41 10 Regions Visited 4 Branch Regions 1 Pre-discovered Areas . | . . . . . Known Exits Taken 1 | . . 1 . . Unknown Exits Taken 3 | 1 1 . 1 . Scrap Searched 1 | . . 1 . . Spaces Dug . | . . . . . Terrain Destroyed 153 | . 23 59 71 . Melee . | . . . . . Projectile . | . . . . . AOE 153 | . 23 59 71 . Terrain Rammed . | . . . . . Walls Destroyed . | . . . . . Machines Disabled . | . . . . . Actions | -11 -10 -10 -9 -8 --------- Run | Yrd Mat Min Mat Mat Total 1325 | 64 270 495 380 116 Wait 70 | . . 54 12 4 Move 1113 | 50 252 420 311 80 Hop . | . . . . . Pick Up 28 | 8 6 5 7 2 Fast Attach 12 | . 2 . 8 2 Attach 18 | 6 2 . 7 3 Detach 2 | . . . 1 1 Swap 11 | . 1 6 2 2 Drop 12 | . 4 7 . 1 Fire 56 | . 3 3 31 19 Melee . | . . . . . Ram 1 | . . . 1 . Kick 2 | . . . . 2 Crush . | . . . . . Escape Stasis . | . . . . . Rewire . | . . . . . Trap . | . . . . . Miscellaneous . | . . . . . Route ------- -11/Scrapyard -10/Materials -10/Mines (discovered 3 exits: *Mat x2 / [*Exi]) -9/Materials -8/Materials History --------- Turn | Location | Event 3 | -11/Scrapyard | Discovered new exit (range 15) 73 | -11/Scrapyard | Entered Materials 309 | -10/Materials | Build established: Mutant 364 | -10/Materials | Discovered new exit (range 16) 399 | -10/Materials | Entered Mines 444 | -10/Mines | Found a damaged Exp. Sensor Array with a note attached 451 | -10/Mines | Found Prototype Device 486 | -10/Mines | Deemed a non-threat by the Exiles lab entrance 486 | -10/Mines | Discovered new exit (range 6) 510 | -10/Mines | Assisted by bots powering up and referring to "LRC-V3" 737 | -10/Mines | Discovered new exit (range 16) 740 | -10/Mines | Identified exit to Materials 984 | -10/Mines | Entered Materials 984 | -9/Materials | Accompanied by 3 allies 984 | -9/Materials | Evolved 2 slots: Propulsion x2 1264 | -9/Materials | Lost 3 allies 1338 | -9/Materials | Lost 3 parts (1p2n) 1423 | -9/Materials | Core integrity fell below 50% 1452 | -9/Materials | Discovered new exit (range 16) 1475 | -9/Materials | Core integrity fell below 20% 1481 | -9/Materials | Lost 3 parts (3n) 1485 | -9/Materials | Entered another Materials area 1485 | -8/Materials | Evolved 2 slots: Utility x2 1504 | -8/Materials | Identified Exp. Sensor Array 1651 | -8/Materials | Self-destructed Last Messages --------------- >>Traps(Locate) Found 4 traps in 1 array: 4x Shock Trap Map updated. >>Traps(Reprogram) Reprogrammed 4 Shock Traps. >>Alert(Check) Current Alert Level: 1-A 01573_ Dropped Flight Unit. 01573_ Acquired VSS Leg. 01603_ System corrupted: Matter fused (-5). 01608_ Lgt. Ion Engine destroyed. 01612_ Beam Rifle destroyed. 01624_ Critical hit (Burn: +37). 01626_ Lgt. Treads destroyed. 01639_ System corrupted: Matter fused (-8). 01646_ Atomic Centrifuge disabled. 01647_ Kicked G-47 Trooper. 01649_ Titanium Leg destroyed. 01651_ Lgt. Assault Rifle destroyed. Map ----- +----------------------------------------------------+ | | | | | | | | | | | | | | | | | | | | | | | | | ?????????????????????????????????????????????????? | | ??########??????########?????????????????????????? | | ??# #??????# #?????????????????????????? | | ??#!! " #??????# """#?????????????????????????? | | ??#! ""#??????# """#?????????????????????????? | | ??# S"#??????# """#?????????????????????????? | | ??# #??##### #?????????????????????????? | | ??#= #??#"""# #?????????????????????????? | | ??####+######"Y"####+####????????????????????????? | | ??# ^ ##########???????????????? | | ??# + #???????????????? | | ??# "#Y""" ! #???????????????? | | ??#### ^ T# "" #???????????????? | | ?????# ! """ ^ "#@ "" #???????????????? | | ?????# """ ^ #gg = #???????????????? | | ?????# """ + """ #???????????????? | | ?????# # """ #???????????????? | | ?????# # """ #???????????????? | | ?????# """ ! # #???????????????? | | ?????# """ #####/###########???????????????? | | ?????#[ """ #??? ?????????????????????????? | | ?????+%! #???" ?????????????????????????? | | ?????#= #??"" /??????????????X?????????? | | ?????# """ #??"" ????????????????????????? | | ?????# """ #?""" ! ???????????????????????? | | ?????# ??" #??"" ???????????????????????? | | ???????????? ???? ??????????????????????? | | ????????????????????? ??????????????????????? | | ????????????????????? #?????????????????????? | | ?????????????x???????#### ##?????????????????????? | | ???????????????X?????????##??????????????????????? | | ?????????????????????????????????????????????????? | | ?????????????????????????????????????????????????? | | ?????????????????????????????????????????????????? | | ?????????????????????????????????????????????????? | | ?????????????????????????????????????????????????? | | ?????????????????????????????????????????????????? | | ?????????????????????????????????????????????????? | +----------------------------------------------------+ Best States ------------- Heat Dissipation 31 Energy Generation 14 Energy Capacity 250 Matter Stores 300 Matter Capacity 300 Sight Range 16 Robot Scan Range 20 Terrain Scan Density 10 Armor Coverage 150 Power Shielding 33 Evasion (%) 60 Recoil Reduction 2 Offensive Hacking 10 Item Schematics ----------------- None Robot Schematics ------------------ None Fabricated ------------ Nothing Alien Tech Used ----------------- None Achievements -------------- None Challenges ------------ None Game ------ Seed NodeGlidesysHumpback Manual? 0 Play Time 00:30:49 Cumulative 3.0 hours Start 2024.04.18 @ 23:55:10 End 2024.04.19 @ 06:41:07 Sessions 3 Manual Loads 0 Difficulty Rogue Special Mode None Game No. 3 Rogue 3 Adventurer 0 Explorer 0 Win Type - Total 0 Types 0/0/0/0/0/0/0/0/0 Lore% 4 Gallery% 7 Achievement% 9 Wizard Run 0 Options --------- Layout 0 ASCII 0 Keyboard 0 Movement Mouse Keybinds 0 Fullscreen 1 Font 18/SmallcapsGlow Map View 38x25 Zoom Use 96% Tactical HUD 1 Map Filters NONE Filters NONE Steam 1 RUN: 5d73f125-450c-4538-864b-4242e22b54f5